fUSD/lending_fUSD_20250108
["ID","MTS","AMOUNT","RATE_DAILY","PERIOD"]
[348108377,1736320242965,-74.33805535,0.00010272,2]
[348108378,1736320242989,-274.99194465,0.00010272,2]
[348108379,1736320242998,-500.0,0.00010272,2]
[348108380,1736320243007,-500.0,0.00010272,2]
[348108381,1736320243018,-500.0,0.00010272,2]
[348108384,1736320243028,-500.0,0.00010272,2]
[348108385,1736320243037,-500.0,0.00010272,2]
[348108386,1736320243047,-500.0,0.00010272,2]
[348108387,1736320243057,-500.0,0.00010272,2]
[348108388,1736320243066,-500.0,0.00010272,2]
[348108389,1736320243076,-500.0,0.00010272,2]
[348108390,1736320243085,-500.0,0.00010272,2]
[348108391,1736320243095,-352.92,0.00010272,2]
[348108392,1736320243104,-384.53375728,0.00010272,2]
[348108393,1736320243113,-520.07,0.00010272,2]
[348108394,1736320243122,-500.0,0.00010272,2]
[348108395,1736320243131,-500.0,0.00010272,2]
[348108396,1736320243140,-500.0,0.00010272,2]
[348108397,1736320243150,-500.0,0.00010272,2]
[348108399,1736320243159,-500.0,0.00010272,2]
[348108401,1736320243168,-500.0,0.00010272,2]
[348108403,1736320243178,-34.78135521,0.00010272,2]
[348108404,1736320243189,-179.20864479,0.00010272,2]
[348108405,1736320243198,-338.23,0.00010272,2]
[348108406,1736320243207,-500.0,0.00010272,2]
[348108407,1736320243216,-500.0,0.00010272,2]
[348108408,1736320243225,-499.06135521,0.00010272,2]
[348108409,1736320243236,-0.93864479,0.00010272,2]
[348108410,1736320243246,-500.0,0.00010272,2]
[348108411,1736320243255,-500.0,0.00010272,2]
[348108412,1736320243264,-403.92,0.00010272,2]
[348108413,1736320243273,-500.0,0.00010272,2]
[348108414,1736320243282,-500.0,0.00010272,2]
[348108415,1736320243291,-203.2967534,0.00010272,2]
[348108416,1736320243300,-500.0,0.00010272,2]
[348108417,1736320243309,-500.0,0.00010272,2]
[348108418,1736320243318,-500.0,0.00010272,2]
[348108419,1736320243327,-500.0,0.00010272,2]
[348108420,1736320243336,-500.0,0.00010272,2]
[348108421,1736320243345,-535.91,0.00010272,2]
[348108422,1736320243355,-496.65,0.00010272,2]
[348108423,1736320243364,-306.8961115,0.00010272,2]
[348108424,1736320243373,-500.0,0.00010272,2]
[348108425,1736320243382,-500.0,0.00010272,2]
[348108426,1736320243392,-421.19392526,0.00010272,2]
[348108427,1736320243401,-500.0,0.00010272,2]
[348108428,1736320243409,-500.0,0.00010272,2]
[348108429,1736320243418,-500.0,0.00010272,2]
[348108430,1736320243428,-373.03856505,0.00010272,2]
[348108431,1736320243439,-126.96143495,0.00010272,2]
[348108432,1736320243448,-148.28019132,0.00010272,2]
[348108433,1736320243466,-351.71980868,0.00010272,2]
[348108434,1736320243475,-500.0,0.00010272,2]
[348108435,1736320243484,-500.0,0.00010272,2]
[348108436,1736320243493,-543.7,0.00010272,2]
[348108437,1736320243502,-284.01,0.00010272,2]
[348108438,1736320243511,-500.0,0.00010272,2]
[348108439,1736320243520,-520.83,0.00010272,2]
[348108440,1736320243529,-500.0,0.00010272,2]
[348108441,1736320243538,-500.0,0.00010272,2]
[348108443,1736320243548,-500.0,0.00010272,2]
[348108445,1736320243558,-500.0,0.00010272,2]
[348108448,1736320243567,-500.0,0.00010272,2]
[348108450,1736320243577,-500.0,0.00010272,2]
[348108452,1736320243586,-500.0,0.00010272,2]
[348108454,1736320243596,-500.0,0.00010272,2]
[348108456,1736320243606,-500.0,0.00010272,2]
[348108457,1736320243615,-500.0,0.00010272,2]
[348108458,1736320243624,-500.0,0.00010272,2]
[348108459,1736320243634,-503.15,0.00010272,2]
[348108460,1736320243645,-150.52757202,0.00010272,2]
[348108461,1736320243657,-349.47242798,0.00010272,2]
[348108462,1736320243666,-500.0,0.00010272,2]
[348108463,1736320243675,-500.0,0.00010272,2]
[348108464,1736320243687,-500.0,0.00010272,2]
[348108465,1736320243696,-500.0,0.00010272,2]
[348108466,1736320243705,-500.0,0.00010272,2]
[348108467,1736320243714,-500.0,0.00010272,2]
[348108468,1736320243723,-500.0,0.00010272,2]
[348108469,1736320243732,-500.0,0.00010272,2]
[348108470,1736320243741,-500.0,0.00010272,2]
[348108471,1736320243750,-500.0,0.00010272,2]
[348108472,1736320243759,-500.0,0.00010272,2]
[348108473,1736320243768,-500.0,0.00010272,2]
[348108474,1736320243778,-500.0,0.00010272,2]
[348108475,1736320243787,-500.0,0.00010272,2]
[348108476,1736320243796,-500.0,0.00010272,2]
[348108477,1736320243806,-500.0,0.00010272,2]
[348108478,1736320243815,-579.57,0.00010272,2]
[348108479,1736320243824,-500.0,0.00010272,2]
[348108480,1736320243834,-500.0,0.00010272,2]
[348108481,1736320243843,-500.0,0.00010272,2]
[348108482,1736320243852,-500.0,0.00010272,2]
[348108483,1736320243862,-500.0,0.00010272,2]
[348108484,1736320243871,-500.0,0.00010272,2]
[348108485,1736320243880,-500.0,0.00010272,2]
[348108486,1736320243890,-500.0,0.00010272,2]
[348108487,1736320243899,-500.0,0.00010272,2]
[348108488,1736320243908,-500.0,0.00010272,2]
[348108489,1736320243917,-500.0,0.00010272,2]
[348108490,1736320243928,-500.0,0.00010272,2]
[348108491,1736320243937,-500.0,0.00010272,2]
[348108492,1736320243946,-500.0,0.00010272,2]
[348108493,1736320243955,-500.0,0.00010272,2]
[348108494,1736320243965,-500.0,0.00010272,2]
[348108495,1736320243974,-500.0,0.00010272,2]
[348108496,1736320243983,-500.0,0.00010272,2]
[348108497,1736320243992,-500.0,0.00010272,2]
[348108498,1736320244002,-500.0,0.00010272,2]
[348108499,1736320244011,-500.0,0.00010272,2]
[348108500,1736320244020,-531.36,0.00010272,2]
[348108501,1736320244030,-500.0,0.00010272,2]
[348108502,1736320244039,-500.0,0.00010272,2]
[348108503,1736320244048,-500.0,0.00010272,2]
[348108504,1736320244058,-500.0,0.00010272,2]
[348108505,1736320244067,-613.88,0.00010272,2]
[348108506,1736320244076,-500.0,0.00010272,2]
[348108507,1736320244086,-500.0,0.00010272,2]
[348108508,1736320244095,-607.28,0.00010272,2]
[348108509,1736320244105,-500.0,0.00010272,2]
[348108510,1736320244114,-224.92800765,0.00010272,2]
[348108511,1736320244126,-275.07199235,0.00010272,2]
[348108512,1736320244136,-500.0,0.00010272,2]
[348108513,1736320244145,-500.0,0.00010272,2]
[348108514,1736320244155,-500.0,0.00010272,2]
[348108515,1736320244164,-605.9,0.00010272,2]
[348108516,1736320244174,-500.0,0.00010272,2]
[348108517,1736320244184,-382.09,0.00010272,2]
[348108518,1736320244193,-824.98,0.00010272,2]
[348108519,1736320244203,-500.0,0.00010272,2]
[348108520,1736320244212,-500.0,0.00010272,2]
[348108521,1736320244222,-500.0,0.00010272,2]
[348108522,1736320244232,-500.0,0.00010272,2]
[348108523,1736320244241,-500.0,0.00010272,2]
[348108524,1736320244250,-500.0,0.00010272,2]
[348108525,1736320244260,-534.7558338,0.00010272,2]
[348108526,1736320244269,-500.0,0.00010272,2]
[348108527,1736320244279,-500.0,0.00010272,2]
[348108528,1736320244288,-500.0,0.00010272,2]
[348108529,1736320244297,-500.0,0.00010272,2]
[348108530,1736320244306,-500.0,0.00010272,2]
[348108531,1736320244315,-500.0,0.00010272,2]
[348108532,1736320244324,-500.0,0.00010272,2]
[348108533,1736320244333,-500.0,0.00010272,2]
[348108534,1736320244343,-675.64,0.00010272,2]
[348108535,1736320244352,-500.0,0.00010272,2]
[348108536,1736320244361,-500.0,0.00010272,2]
[348108537,1736320244371,-500.0,0.00010272,2]
[348108538,1736320244380,-500.0,0.00010272,2]
[348108539,1736320244389,-500.0,0.00010272,2]
[348108540,1736320244398,-518.31,0.00010272,2]
[348108541,1736320244407,-500.0,0.00010272,2]
[348108542,1736320244416,-500.0,0.00010272,2]
[348108543,1736320244426,-500.0,0.00010272,2]
[348108544,1736320244435,-500.0,0.00010272,2]
[348108545,1736320244445,-500.0,0.00010272,2]
[348108546,1736320244454,-1296.58,0.00010272,2]
[348108547,1736320244464,-500.0,0.00010272,2]
[348108548,1736320244473,-517.44,0.00010272,2]
[348108549,1736320244482,-500.0,0.00010272,2]
[348108550,1736320244492,-500.0,0.00010272,2]
[348108551,1736320244501,-500.0,0.00010272,2]
[348108552,1736320244511,-500.0,0.00010272,2]
[348108553,1736320244520,-500.0,0.00010272,2]
[348108554,1736320244529,-573.38536217,0.00010272,2]
[348108555,1736320244539,-500.0,0.00010272,2]
[348108556,1736320244548,-291.01688,0.00010272,2]
[348108557,1736320244557,-500.0,0.00010272,2]
[348108558,1736320244566,-500.0,0.00010272,2]
[348108559,1736320244575,-500.0,0.00010272,2]
[348108560,1736320244584,-1689.93,0.00010272,2]
[348108561,1736320244594,-500.0,0.00010272,2]
[348108562,1736320244604,-220.328879,0.00010272,2]
[348108563,1736320244614,-500.0,0.00010272,2]
[348108564,1736320244624,-500.0,0.00010272,2]
[348108565,1736320244633,-500.0,0.00010272,2]
[348108566,1736320244643,-500.0,0.00010272,2]
[348108567,1736320244655,-500.0,0.00010272,2]
[348108568,1736320244664,-500.0,0.00010272,2]
[348108569,1736320244674,-500.0,0.00010272,2]
[348108570,1736320244684,-500.0,0.00010272,2]
[348108571,1736320244694,-500.0,0.00010272,2]
[348108572,1736320244703,-500.0,0.00010272,2]
[348108573,1736320244712,-500.0,0.00010272,2]
[348108574,1736320244721,-500.0,0.00010272,2]
[348108575,1736320244731,-500.0,0.00010272,2]
[348108576,1736320244740,-500.0,0.00010272,2]
[348108577,1736320244749,-500.0,0.00010272,2]
[348108578,1736320244759,-500.0,0.00010272,2]
[348108579,1736320244768,-279.05,0.00010272,2]
[348108580,1736320244777,-500.0,0.00010272,2]
[348108581,1736320244787,-500.0,0.00010272,2]
[348108582,1736320244796,-539.03,0.00010272,2]
[348108583,1736320244806,-500.0,0.00010272,2]
[348108584,1736320244816,-500.0,0.00010272,2]
[348108585,1736320244825,-500.0,0.00010272,2]
[348108586,1736320244835,-500.0,0.00010272,2]
[348108587,1736320244844,-500.0,0.00010272,2]
[348108588,1736320244853,-500.0,0.00010272,2]
[348108589,1736320244863,-500.0,0.00010272,2]
[348108590,1736320244872,-500.0,0.00010272,2]
[348108591,1736320244882,-1377.05,0.00010272,2]
[348108592,1736320244895,-500.0,0.00010272,2]
[348108593,1736320244905,-500.0,0.00010272,2]
[348108594,1736320244914,-467.18105834,0.00010272,2]
[348108595,1736320244924,-500.0,0.00010272,2]
[348108596,1736320244934,-550.11095661,0.00010272,2]
[348108597,1736320244943,-500.0,0.00010272,2]
[348108598,1736320244952,-500.0,0.00010272,2]
[348108599,1736320244962,-502.71763763,0.00010272,2]
[348108600,1736320244971,-167.84970541,0.00010272,2]
[348108601,1736320244984,-336.26534352,0.00010272,2]
[348108602,1736320244993,-317.80580327,0.00010272,2]
[348108603,1736320245003,-500.0,0.00010272,2]
[348108604,1736320245012,-500.0,0.00010272,2]
[348108605,1736320245024,-208.07865247,0.00010272,2]
[348108606,1736320245039,-542.08134753,0.00010272,2]
[348108607,1736320245049,-500.0,0.00010272,2]
[348108608,1736320245060,-500.0,0.00010272,2]
[348108609,1736320245070,-500.0,0.00010272,2]
[348108610,1736320245079,-500.0,0.00010272,2]
[348108611,1736320245089,-170.24,0.00010272,2]
[348108612,1736320245098,-500.0,0.00010273,2]
[348108613,1736320245107,-500.0,0.00010273,2]
[348108614,1736320245117,-518.31,0.00010273,2]
[348108615,1736320245127,-233.03118668,0.00010273,2]
[348108616,1736320245137,-500.0,0.00010273,2]
[348108617,1736320245146,-500.0,0.00010273,2]
[348108618,1736320245156,-551.69,0.00010273,2]
[348108619,1736320245165,-500.0,0.00010273,2]
[348108620,1736320245178,-500.0,0.00010273,2]
[348108621,1736320245188,-500.0,0.00010273,2]
[348108622,1736320245197,-282.12,0.00010273,2]
[348108623,1736320245206,-500.0,0.00010273,2]
[348108624,1736320245216,-500.0,0.00010273,2]
[348108625,1736320245226,-500.0,0.00010273,2]
[348108626,1736320245235,-605.51,0.00010273,2]
[348108627,1736320245244,-500.0,0.00010273,2]
[348108628,1736320245255,-500.0,0.00010273,2]
[348108629,1736320245264,-500.0,0.00010273,2]
[348108630,1736320245274,-500.0,0.00010273,2]
[348108631,1736320245479,-500.0,0.00010273,2]
[348108632,1736320245489,-500.0,0.00010273,2]
[348108633,1736320245499,-500.0,0.00010273,2]
[348108634,1736320245508,-626.02,0.00010273,2]
[348108635,1736320245518,-500.0,0.00010273,2]
[348108636,1736320245528,-500.0,0.00010273,2]
[348108637,1736320245538,-500.0,0.00010273,2]
[348108638,1736320245548,-500.0,0.00010273,2]
[348108639,1736320245558,-500.0,0.00010273,2]
[348108640,1736320245569,-500.0,0.00010273,2]
[348108641,1736320245579,-500.0,0.00010273,2]
[348108642,1736320245589,-500.0,0.00010273,2]
[348108647,1736320245600,-500.0,0.00010273,2]
[348108651,1736320245612,-500.0,0.00010273,2]
[348108653,1736320245622,-500.0,0.00010273,2]
[348108657,1736320245632,-500.0,0.00010273,2]
[348108662,1736320245644,-500.0,0.00010273,2]
[348108667,1736320245654,-500.0,0.00010273,2]
[348108669,1736320245664,-500.0,0.00010273,2]
[348108672,1736320245677,-500.0,0.00010273,2]
[348108675,1736320245686,-500.0,0.00010273,2]
[348108678,1736320245696,-500.0,0.00010273,2]
[348108680,1736320245706,-500.0,0.00010273,2]
[348108683,1736320245715,-500.0,0.00010273,2]
[348108685,1736320245725,-500.0,0.00010273,2]
[348108688,1736320245734,-552.58,0.00010273,2]
[348108690,1736320245744,-500.0,0.00010273,2]
[348108693,1736320245754,-981.18,0.00010273,2]
[348108697,1736320245764,-677.82,0.00010273,2]
[348108699,1736320245774,-1058.0,0.00010273,2]
[348108702,1736320245784,-500.0,0.00010273,2]
[348108705,1736320245794,-1903.25,0.00010273,2]
[348108707,1736320245804,-500.0,0.00010273,2]
[348108709,1736320245813,-500.0,0.00010273,2]
[348108711,1736320245823,-500.0,0.00010273,2]
[348108714,1736320245833,-1112.31,0.00010273,2]
[348108715,1736320245842,-500.0,0.00010273,2]
[348108716,1736320245852,-500.0,0.00010273,2]
[348108717,1736320245862,-500.0,0.00010273,2]
[348108718,1736320245873,-1137.42,0.00010273,2]
[348108719,1736320245882,-500.0,0.00010273,2]
[348108720,1736320245891,-914.63,0.00010273,2]
[348108721,1736320245900,-534.45,0.00010273,2]
[348108722,1736320245910,-150.0,0.00010327,2]
[348108723,1736320245919,-1000.0,0.00010396,2]
[348108724,1736320245930,-1000.0,0.00010411,2]
[348108725,1736320245940,-1000.0,0.00010411,2]
[348108726,1736320245950,-1000.0,0.00010411,2]
[348108727,1736320245960,-1000.0,0.00010411,2]
[348108728,1736320245970,-1000.0,0.00010411,2]
[348108729,1736320245979,-1000.0,0.00010411,2]
[348108730,1736320245989,-1000.0,0.00010411,2]
[348108731,1736320245999,-1000.0,0.00010411,2]
[348108732,1736320246009,-965.0,0.00010411,2]
[348108733,1736320246019,-150.0,0.00010437,2]
[348108734,1736320246029,-829.87,0.00010437,2]
[348108735,1736320246039,-976.54056238,0.00010498,2]
[348108736,1736320246049,-2460.51693781,0.000105,2]
[348108737,1736320246085,-511.799995,0.00010271,2]
[348108738,1736320246096,-110.136185,0.00010271,2]
[348108739,1736320246106,-402.863815,0.000105,2]
[348108740,1736320246116,-9524.08869589,0.000105,2]
[348108741,1736320246240,-6811.69991,0.000105,2]
[348108742,1736320246251,-4777.0,0.000105,2]
[348108744,1736320246263,-340.80667235,0.000105,2]
[348108745,1736320246275,-565.64999718,0.000105,2]
[348108746,1736320246286,-2205.04003108,0.000105,2]
[348108747,1736320246311,-12308.71337608,0.000105,2]
[348108748,1736320246321,-26151.52432232,0.0001054,2]
[348108749,1736320246333,-2474.05674655,0.0001054,2]
[348108750,1736320246344,-7085.49325345,0.0001054,2]
[348108751,1736320246356,-8596.18698344,0.0001054,2]
[348108752,1736320246386,-3048.24200969,0.0001054,2]
[348108754,1736321042798,770.75,8.219e-05,2]
[348108810,1736321431925,-265.82,9.395e-05,2]
[348108811,1736321431935,-250.0,9.521e-05,2]
[348108812,1736321431944,-564.7850125,9.542e-05,2]
[348108813,1736321431955,-435.2149875,9.542e-05,2]
[348108814,1736321431965,-305.91,9.596e-05,2]
[348108815,1736321431975,-250.0,9.633e-05,2]
[348108816,1736321431984,-200.7450125,9.653e-05,2]
[348108817,1736321432073,-618.27929359,9.653e-05,2]
[348108818,1736321432121,-1929.47569391,9.653e-05,2]
[348108819,1736321432131,-521.34,9.683e-05,2]
[348108820,1736321432141,-150.0,9.899e-05,2]
[348108821,1736321432150,-1441.12768499,9.9e-05,2]
[348108822,1736321432161,-451.72001,9.9e-05,2]
[348108823,1736321432173,-8509.6358,9.9e-05,2]
[348108824,1736321432199,-342.72043398,9.9e-05,2]
[348109012,1736321438093,-2555.012376,9.9e-05,2]
[348109013,1736321438105,-386.23189743,9.9e-05,2]
[348109014,1736321438117,-256.85199372,9.9e-05,2]
[348109015,1736321438128,-1420.734641,9.9e-05,2]
[348109016,1736321438140,-427.27660752,9.9e-05,2]
[348109017,1736321438151,-158687.31517694,9.9e-05,2]
[348109018,1736321438160,-500.0,9.973e-05,2]
[348109019,1736321438169,-161.63,9.999e-05,2]
[348109020,1736321438179,-878.18,9.999e-05,2]
[348109021,1736321438189,-500.0,9.999e-05,2]
[348109022,1736321438199,-500.0,9.999e-05,2]
[348109023,1736321438208,-500.0,9.999e-05,2]
[348109024,1736321438218,-500.0,9.999e-05,2]
[348109025,1736321438227,-500.0,9.999e-05,2]
[348109026,1736321438237,-1686.46,9.999e-05,2]
[348109027,1736321438246,-1000.0,9.999e-05,2]
[348109028,1736321438255,-500.0,9.999e-05,2]
[348109029,1736321438265,-500.0,9.999e-05,2]
[348109030,1736321438274,-896.09,9.999e-05,2]
[348109031,1736321438283,-579.02,9.999e-05,2]
[348109032,1736321438292,-759.57,9.999e-05,2]
[348109033,1736321438302,-500.0,9.999e-05,2]
[348109034,1736321438311,-500.0,9.999e-05,2]
[348109035,1736321438320,-975.39,9.999e-05,2]
[348109036,1736321438332,-500.0,9.999e-05,2]
[348109037,1736321438342,-500.0,9.999e-05,2]
[348109038,1736321438351,-826.28,9.999e-05,2]
[348109039,1736321438360,-191.65184394,9.999e-05,2]
[348109040,1736321438370,-500.0,9.999e-05,2]
[348109041,1736321438379,-500.0,9.999e-05,2]
[348109042,1736321438389,-634.20067463,9.999e-05,2]
[348109043,1736321438398,-500.0,9.999e-05,2]
[348109044,1736321438408,-500.0,9.999e-05,2]
[348109045,1736321438417,-500.0,9.999e-05,2]
[348109046,1736321438427,-658.57,9.999e-05,2]
[348109047,1736321438436,-500.0,9.999e-05,2]
[348109048,1736321438445,-500.0,9.999e-05,2]
[348109049,1736321438455,-500.0,9.999e-05,2]
[348109050,1736321438464,-500.0,9.999e-05,2]
[348109051,1736321438474,-509.22,9.999e-05,2]
[348109052,1736321438483,-390.07,9.999e-05,2]
[348109053,1736321438492,-1815.2,9.999e-05,2]
[348109054,1736321438502,-500.0,9.999e-05,2]
[348109055,1736321438511,-500.0,9.999e-05,2]
[348109056,1736321438520,-500.0,9.999e-05,2]
[348109057,1736321438529,-500.0,9.999e-05,2]
[348109058,1736321438539,-500.0,9.999e-05,2]
[348109059,1736321438548,-314.16680941,9.999e-05,2]
[348109060,1736321438558,-167.25,0.0001,2]
[348109061,1736321438567,-3939131.02357968,0.0001,2]
[348109062,1736321438577,-300.57,0.0001,2]
[348109063,1736321438586,-157.78777211,0.0001,2]
[348109064,1736321438595,-1577734.32900171,0.0001,2]
[348109067,1736321438607,-2355.71916622,0.0001,2]
[348109075,1736321439919,-500.0,9.999e-05,2]
[348109077,1736321439928,-13842.21836858,0.0001,2]
[348109082,1736321439979,-16706.33370465,0.0001,2]
[348109087,1736321440034,-957.43,0.0001,2]
[348109099,1736321440295,-4868.24690835,0.0001,2]
[348109105,1736321444462,-18352.5098,9.9e-05,2]
[348109106,1736321444472,-500.0,9.999e-05,2]
[348109107,1736321444481,-266.2156276,9.999e-05,2]
[348109108,1736321444490,-569.19,9.999e-05,2]
[348109109,1736321444499,-500.0,9.999e-05,2]
[348109110,1736321444508,-88012.11959714,0.0001,2]
[348109111,1736321444572,-500.0,9.999e-05,2]
[348109112,1736321444581,-29356.0,0.0001,2]
[348109123,1736321446007,-773.98,9.999e-05,2]
[348109124,1736321446016,-13663.2164422,0.0001,2]
[348109125,1736321446029,-35033.22822211,0.0001,2]
[348109126,1736321446042,-777.2170552,0.0001,2]
[348109127,1736321446053,-166695.0,0.0001,2]
[348109128,1736321446065,-59748.57998166,0.0001,2]
[348109129,1736321446289,-1917.30696,0.0001,2]
[348109132,1736322082405,151.29,8.219e-05,2]
[348109177,1736322632302,-483.37819524,8.219e-05,2]
[348109178,1736322632313,-121.81180476,8.219e-05,2]
[348109179,1736322632322,-548.29,9.191e-05,2]
[348109180,1736322632333,-152.95,9.278e-05,2]
[348109181,1736322632342,-250.0,9.321e-05,2]
[348109182,1736322632352,-8229.67811595,9.377e-05,2]
[348109183,1736322632361,-1000.0,9.377e-05,2]
[348109184,1736322632371,-250.0,9.454e-05,2]
[348109185,1736322632380,-191.5401,9.8e-05,2]
[348109186,1736322632394,-900.0,9.8e-05,3]
[348109187,1736322632403,-12439.21027552,9.899e-05,2]
[348109188,1736322632479,-1947.09739538,9.899e-05,2]
[348109189,1736322632491,-1137.21303064,9.899e-05,2]
[348109205,1736322638008,-918.454597,9.899e-05,2]
[348109207,1736322638020,-653.894593,9.899e-05,2]
[348109209,1736322638034,-9769.51510846,9.899e-05,2]
[348109210,1736322638047,-150.0,9.899e-05,2]
[348109211,1736322638057,-258.6379,9.9e-05,2]
[348109212,1736322638069,-500.0,9.9e-05,2]
[348109213,1736322638078,-5000.0,9.9e-05,2]
[348109214,1736322638088,-1900.0,9.9e-05,3]
[348109215,1736322638097,-271.56802087,9.998e-05,2]
[348109216,1736322638106,-500.0,9.998e-05,2]
[348109217,1736322638115,-500.0,9.998e-05,2]
[348109218,1736322638125,-500.0,9.998e-05,2]
[348109219,1736322638134,-500.0,9.998e-05,2]
[348109220,1736322638143,-500.0,9.998e-05,2]
[348109221,1736322638153,-500.0,9.998e-05,2]
[348109222,1736322638162,-500.0,9.998e-05,2]
[348109223,1736322638171,-500.0,9.998e-05,2]
[348109224,1736322638181,-500.0,9.998e-05,2]
[348109225,1736322638190,-500.0,9.998e-05,2]
[348109226,1736322638199,-510.27692963,9.998e-05,2]
[348109227,1736322638208,-194.22604522,9.998e-05,2]
[348109228,1736322638307,-305.77395478,9.998e-05,2]
[348109229,1736322638317,-500.0,9.998e-05,2]
[348109230,1736322638326,-500.0,9.998e-05,2]
[348109231,1736322638336,-500.0,9.998e-05,2]
[348109232,1736322638346,-500.0,9.998e-05,2]
[348109233,1736322638356,-500.0,9.998e-05,2]
[348109234,1736322638366,-500.0,9.998e-05,2]
[348109235,1736322638376,-500.0,9.998e-05,2]
[348109236,1736322638386,-500.67829063,9.998e-05,2]
[348109237,1736322638400,-500.0,9.998e-05,2]
[348109238,1736322638409,-166.0287352,9.998e-05,2]
[348109241,1736322638427,-333.9712648,9.998e-05,2]
[348109243,1736322638439,-500.0,9.998e-05,2]
[348109245,1736322638448,-500.84279851,9.998e-05,2]
[348109246,1736322638458,-500.0,9.998e-05,2]
[348109247,1736322638469,-500.0,9.998e-05,2]
[348109248,1736322638479,-501.05325168,9.998e-05,2]
[348109249,1736322638489,-560.9,9.998e-05,2]
[348109250,1736322638499,-500.0,9.998e-05,2]
[348109251,1736322638508,-500.0,9.998e-05,2]
[348109252,1736322638517,-500.0,9.998e-05,2]
[348109253,1736322638527,-500.0,9.998e-05,2]
[348109254,1736322638537,-500.0,9.998e-05,2]
[348109255,1736322638547,-500.0,9.998e-05,2]
[348109256,1736322638556,-500.0,9.998e-05,2]
[348109257,1736322638565,-531.53,9.998e-05,2]
[348109258,1736322638575,-500.0,9.998e-05,2]
[348109259,1736322638584,-500.0,9.998e-05,2]
[348109260,1736322638594,-500.0,9.998e-05,2]
[348109261,1736322638603,-500.0,9.998e-05,2]
[348109262,1736322638612,-500.0,9.998e-05,2]
[348109263,1736322638621,-500.0,9.998e-05,2]
[348109265,1736322638630,-500.0,9.998e-05,2]
[348109267,1736322638639,-500.0,9.998e-05,2]
[348109269,1736322638648,-500.0,9.998e-05,2]
[348109271,1736322638658,-500.0,9.998e-05,2]
[348109273,1736322638667,-500.0,9.998e-05,2]
[348109275,1736322638676,-500.0,9.998e-05,2]
[348109277,1736322638686,-511.04,9.998e-05,2]
[348109279,1736322638695,-500.0,9.998e-05,2]
[348109281,1736322638704,-500.0,9.998e-05,2]
[348109283,1736322638713,-500.0,9.998e-05,2]
[348109285,1736322638722,-500.0,9.998e-05,2]
[348109286,1736322638731,-502.98767714,9.998e-05,2]
[348109288,1736322638740,-500.0,9.998e-05,2]
[348109290,1736322638749,-500.0,9.998e-05,2]
[348109291,1736322638758,-500.0,9.998e-05,2]
[348109292,1736322638767,-500.0,9.998e-05,2]
[348109293,1736322638775,-500.0,9.998e-05,2]
[348109294,1736322638786,-501.94674599,9.998e-05,2]
[348109295,1736322638795,-500.0,9.998e-05,2]
[348109296,1736322638804,-500.0,9.998e-05,2]
[348109297,1736322638813,-500.0,9.998e-05,2]
[348109298,1736322638822,-500.0,9.998e-05,2]
[348109299,1736322638831,-500.0,9.998e-05,2]
[348109300,1736322638840,-500.0,9.998e-05,2]
[348109301,1736322638848,-386.55458022,9.998e-05,2]
[348109302,1736322638858,-346.85208917,9.998e-05,2]
[348109303,1736322638892,-153.14791083,9.998e-05,2]
[348109304,1736322638902,-501.26270725,9.998e-05,2]
[348109305,1736322638912,-501.49572027,9.998e-05,2]